bitfinex-derivatives/quotes_ETHF0:USTF0_20220103
["timestamp","ask_amount","ask_price","bid_price","bid_amount"]
[1641226744970,1.6563383,3761.0,3760.3,3.66066543]
[1641226745370,1.41775023,3760.8,3760.4,0.03003269]
[1641226745573,1.41775023,3760.8,3760.5,0.128157]
[1641226745872,1.41775023,3760.8,3760.6,0.03003269]
[1641226746673,1.6563383,3761.1,3760.6,0.03003269]
[1641226746972,1.6563383,3761.1,3760.7,0.69571325]
[1641226747373,0.128157,3761.2,3760.6,0.03003269]
[1641226747775,0.128157,3761.2,3759.6,2.00479]
[1641226747776,1.5,3760.7,3759.6,2.00479]
[1641226747976,1.5,3760.9,3759.6,2.00479]
[1641226748475,2.00479,3760.5,3759.6,2.00479]
[1641226748878,0.128157,3760.4,3759.6,2.00479]
[1641226749275,0.128157,3760.4,3759.7,0.15818997]
[1641226749474,0.128157,3760.4,3759.9,1.42148681]
[1641226749879,1.5,3760.0,3759.7,0.03003297]
[1641226750077,1.5,3759.8,3758.2,2.15851949]
[1641226750279,1.5,3759.3,3758.2,2.15851949]
[1641226750480,2.58179,3759.3,3758.5,5.75827327]
[1641226750881,0.128157,3759.2,3758.5,5.75827327]
[1641226751280,0.128157,3759.2,3758.7,4.64670658]
[1641226753385,2.00479,3759.3,3758.7,4.64670658]
[1641226753782,2.00479,3759.3,3759.2,1.47517738]
[1641226755285,2.234781,3759.3,3759.2,1.47517738]
[1641226759090,2.00479,3759.3,3758.8,1.50132839]
[1641226759291,2.00479,3759.3,3758.9,0.79810575]
[1641226761094,2.00479,3759.3,3758.7,1.50132839]
[1641226761695,2.00479,3759.3,3758.7,1.62948539]
[1641226762094,2.00479,3759.3,3758.7,1.50132839]
[1641226762297,1.5,3759.1,3758.7,1.50132839]
[1641226762494,2.00479,3759.3,3757.8,3.80111227]
[1641226762495,1.5,3758.8,3757.8,3.80111227]
[1641226762695,1.5,3758.5,3757.8,3.80111227]
[1641226762896,1.5,3758.2,3757.8,3.00278662]
[1641226763097,1.5,3758.2,3757.2,0.79845375]
[1641226763098,1.5,3758.1,3757.2,0.79845375]
[1641226764195,1.5,3758.2,3757.2,0.79845375]
[1641226764399,2.00479,3758.1,3757.2,2.00479]
[1641226764695,1.5,3757.9,3757.2,2.00479]
[1641226764898,2.00479,3758.1,3757.2,2.00479]
[1641226765296,2.00479,3758.1,3757.2,2.97840522]
[1641226765797,2.00479,3758.1,3758.0,0.90110232]
[1641226765997,2.234781,3758.1,3758.0,0.90110232]
[1641226766398,2.234781,3758.1,3757.2,2.97840522]
[1641226766598,2.234781,3758.1,3757.2,2.00479]
[1641226767299,2.234781,3758.1,3757.3,0.79843676]
[1641226768797,2.234781,3758.1,3757.2,2.00479]
[1641226769199,2.234781,3758.1,3757.2,2.8032456]
[1641226769598,2.234781,3758.1,3757.4,0.79842403]
[1641226771200,2.00479,3758.1,3757.4,0.92656439]
[1641226771398,2.00479,3758.1,3757.4,0.79840739]
[1641226773798,2.00479,3758.1,3757.5,0.128157]
[1641226774000,2.00479,3758.1,3757.6,0.71683295]
[1641226775302,2.00479,3758.1,3757.7,0.79835438]
[1641226776803,2.00479,3758.1,3757.9,0.79831252]
[1641226777204,0.229991,3758.0,3757.6,0.71683295]
[1641226777402,2.00479,3758.1,3757.6,0.71683295]
[1641226777604,3.33455778,3758.9,3757.7,2.29834988]
[1641226777807,2.00479,3758.9,3758.2,0.80916774]
[1641226778004,0.128157,3758.8,3758.2,0.80916774]
[1641226779005,2.00479,3758.9,3758.3,0.128157]
[1641226779206,2.00479,3758.9,3758.6,0.7981669]
[1641226779407,2.00479,3758.9,3758.6,1.3492669]
[1641226779806,0.229991,3758.8,3758.6,1.3492669]
[1641226780006,2.00479,3758.9,3758.6,1.3492669]
[1641226780808,0.229991,3758.8,3758.6,1.3492669]
[1641226781007,2.00479,3758.9,3758.6,1.3492669]
[1641226782110,0.229991,3758.8,3758.6,1.3492669]
[1641226782710,2.00479,3758.9,3758.6,1.3492669]
[1641226782913,2.00479,3758.9,3758.6,0.7981669]
[1641226783110,0.229991,3758.8,3758.6,0.7981669]
[1641226783712,2.00479,3758.9,3758.6,0.7981669]
[1641226784011,0.229991,3758.8,3758.6,0.7981669]
[1641226784614,1.5,3758.7,3758.2,0.80916774]
[1641226784814,1.5,3758.3,3757.6,1.70660978]
[1641226785116,1.5,3758.1,3757.6,1.70660978]
[1641226785314,1.5,3758.1,3757.3,0.89362231]
[1641226785716,1.5,3758.1,3757.2,2.00479]
[1641226786113,1.5,3757.7,3756.8,0.95826073]
[1641226786316,1.33014984,3757.8,3756.8,0.95826073]
[1641226786517,2.00479,3757.4,3756.8,0.95826073]
[1641226786717,1.5,3757.3,3756.6,2.89841231]
[1641226787115,0.128157,3757.2,3756.6,2.89841231]
[1641226787317,0.128157,3757.2,3756.3,0.89362231]
[1641226787515,1.5,3756.9,3756.3,0.89362231]
[1641226787816,1.5,3756.4,3755.7,1.48938556]
[1641226788018,1.5,3756.5,3755.7,1.48938556]
[1641226788215,12.0183,3756.9,3755.7,1.48938556]
[1641226788419,1.5,3756.4,3755.7,1.48938556]
[1641226788618,12.0183,3756.9,3755.7,1.48938556]
[1641226788619,1.5,3755.8,3755.7,1.48938556]
[1641226788822,2.304191,3755.8,3754.9,2.97874105]
[1641226789018,2.304191,3755.8,3754.4,0.96706533]
[1641226789019,2.83110418,3755.1,3754.4,2.97874105]
[1641226789218,11.418157,3755.7,3754.4,2.97874105]
[1641226789520,0.128157,3755.7,3754.4,2.97874105]
[1641226790320,1.5,3755.6,3754.4,2.97874105]
[1641226790524,2.00479,3754.7,3754.4,2.97874105]
[1641226790720,0.229991,3754.6,3754.4,2.97874105]
[1641226790922,0.358148,3754.6,3754.4,2.97874105]
[1641226791122,0.358148,3754.6,3754.0,2.40429542]
[1641226791323,0.358148,3754.6,3754.0,2.53245242]
[1641226791721,0.128157,3754.6,3754.0,2.53245242]
[1641226792122,2.00479,3754.7,3754.0,2.53245242]
[1641226792323,2.00479,3754.7,3754.0,2.40429542]
[1641226793322,1.5,3754.4,3754.0,0.79913179]
[1641226793521,0.5986,3754.4,3754.0,0.79913179]
[1641226793724,1.3313966,3754.3,3752.9,0.75156543]
[1641226793922,0.5986,3754.4,3752.9,0.75156543]
[1641226794522,2.00479,3753.8,3753.2,0.79931562]
[1641226794723,2.00479,3754.7,3753.7,1.5]
[1641226794924,2.00479,3754.7,3753.7,2.1724]
[1641226795123,2.00479,3754.7,3753.8,0.79917004]
[1641226795524,2.00479,3754.7,3754.6,1.5]
[1641226795727,32.3744,3755.7,3754.6,0.5853]
[1641226795930,1.13396661,3756.0,3754.6,0.5853]
[1641226796529,1.13396661,3755.1,3754.6,2.59009]
[1641226796727,1.13396661,3755.1,3754.7,0.96079755]
[1641226797828,1.13396661,3755.1,3753.2,33.50158327]
[1641226797829,1.5,3754.8,3753.2,33.50158327]
[1641226798028,0.8037,3755.1,3754.1,2.97874105]
[1641226798629,0.8037,3755.1,3754.3,2.00479]
[1641226798829,0.128157,3755.0,3754.4,0.128157]
[1641226799529,0.128157,3755.0,3754.3,2.00479]
[1641226799729,0.50119609,3755.0,3754.3,2.00479]
[1641226800030,1.5,3754.9,3754.3,2.00479]
[1641226800229,0.50119609,3755.0,3753.9,2.00479]
[1641226800230,1.5,3754.5,3753.9,2.00479]
[1641226800431,1.5,3754.0,3753.5,2.97874105]
[1641226800630,1.5,3753.8,3753.5,2.97874105]
[1641226800833,0.229991,3753.7,3753.5,2.97874105]
[1641226801029,0.128157,3753.8,3753.5,2.97874105]
[1641226801229,2.81669,3754.0,3753.5,2.97874105]
[1641226801634,2.81669,3754.0,3753.1,2.00479]
[1641226801830,12.79,3753.9,3753.1,2.00479]
[1641226802433,1.5,3753.9,3753.1,2.00479]
[1641226802632,1.5,3753.7,3752.7,2.00479]
[1641226803034,1.5,3753.5,3752.7,2.00479]
[1641226803233,1.5,3753.2,3752.7,2.00479]
[1641226803436,0.6524,3753.2,3752.1,1.04034109]
[1641226803734,1.33196762,3752.7,3752.1,1.04034109]
[1641226803936,0.6524,3753.2,3752.1,1.04034109]
[1641226804235,0.6524,3753.2,3751.2,1.04271133]
[1641226804435,0.6524,3753.2,3751.8,0.86032404]
[1641226804637,2.00479,3752.2,3751.8,0.86032404]
[1641226804841,2.00479,3752.2,3751.7,0.128157]
[1641226805042,0.8295788,3754.6,3752.0,1.5]
[1641226805342,32.7051,3755.1,3751.9,0.6331]
[1641226805542,1.5,3753.9,3751.9,0.6331]
[1641226805742,1.5,3753.5,3752.0,1.09302638]
[1641226805946,1.5,3753.4,3752.0,1.09302638]
[1641226806544,1.5,3753.4,3752.8,2.00479]
[1641226806744,0.128157,3753.3,3752.8,2.00479]
[1641226807044,0.128157,3753.3,3752.4,2.00479]
[1641226808247,1.5,3752.9,3752.4,2.00479]
[1641226808449,13.4191,3752.9,3752.4,2.00479]
[1641226808648,13.29479,3752.8,3752.0,2.00479]
[1641226808946,2.00479,3752.8,3752.0,2.00479]
[1641226809546,11.29,3752.7,3752.0,2.00479]
[1641226810046,2.00479,3752.8,3752.0,2.00479]
[1641226810656,13.29479,3752.8,3752.0,2.00479]
[1641226811048,1.5,3752.4,3752.0,2.00479]
[1641226811247,0.128157,3752.3,3752.0,2.00479]
[1641226811449,0.229991,3752.2,3751.6,2.00479]
[1641226811846,0.229991,3752.2,3751.1,0.79976477]
[1641226812647,2.00479,3751.5,3751.1,0.79976477]
[1641226812846,2.61679,3751.5,3751.1,0.79976477]
[1641226813247,0.128157,3751.4,3751.1,0.79976477]
[1641226813448,0.229991,3751.3,3751.1,0.79976477]
[1641226814848,0.229991,3751.3,3750.7,2.00479]
[1641226815049,0.128157,3751.4,3750.7,2.00479]
[1641226815949,2.00479,3751.5,3750.7,2.00479]
[1641226816152,2.00479,3751.5,3750.7,3.50479]
[1641226816551,2.132947,3751.5,3750.7,2.00479]
[1641226817150,2.00479,3751.5,3750.8,0.128157]
[1641226818352,2.00479,3751.5,3750.7,2.00479]
[1641226818655,0.128157,3751.4,3750.7,2.00479]
[1641226819652,0.128157,3751.4,3750.7,2.132947]
[1641226820352,0.128157,3751.4,3750.7,2.00479]
[1641226820552,0.128157,3751.4,3750.5,1.63680042]
[1641226821759,1.5,3750.7,3748.6,2.00258976]
[1641226821957,1.5,3750.2,3748.7,1.66876704]
[1641226822157,1.3329761,3749.9,3748.7,1.66876704]
[1641226822486,1.8994761,3749.9,3747.9,1.66911309]
[1641226822658,2.00479,3749.1,3748.2,2.8945408]
[1641226822858,0.5665,3749.9,3749.0,1.5]
[1641226823057,1.33278956,3750.4,3748.9,1.33254624]
[1641226823260,1.33266167,3750.8,3748.7,1.5]
[1641226823556,32.9261,3751.0,3748.7,1.5]
[1641226823760,32.9261,3751.0,3748.7,1.24180553]
[1641226824156,32.9261,3751.0,3749.3,1.5]
[1641226824356,32.9261,3751.0,3749.8,1.5]
[1641226824556,2.00479,3750.8,3749.9,2.00479]
[1641226824757,0.128157,3750.7,3750.0,0.128157]
[1641226825157,0.778357,3750.7,3750.0,0.128157]
[1641226825556,0.778357,3750.7,3749.6,2.00479]
[1641226825758,0.6502,3750.7,3750.5,1.5]
[1641226826157,1.33195343,3752.7,3750.6,1.33195343]
[1641226826558,32.1417,3752.9,3750.6,1.33193569]
[1641226826759,2.00479,3752.3,3751.4,2.00479]
[1641226826957,2.00479,3752.3,3751.5,0.128157]
[1641226827158,2.00479,3752.3,3751.4,2.00479]
[1641226827759,2.00479,3752.3,3751.5,0.81439873]
[1641226828159,13.29479,3752.3,3751.4,2.00479]
[1641226828960,0.128157,3752.2,3751.4,2.00479]
[1641226829762,0.128157,3752.2,3750.0,2.43987597]
[1641226829763,1.5,3752.1,3750.9,1.16060202]
[1641226829959,1.5,3752.1,3749.6,64.5913]
[1641226830160,0.128157,3752.2,3748.3,1.35080536]
[1641226830361,0.128157,3752.2,3749.7,1.33227639]
[1641226830362,1.33227639,3751.8,3749.7,1.33227639]
[1641226830564,1.33227639,3751.8,3750.1,0.79997187]
[1641226830762,2.00479,3751.2,3750.3,2.00479]
[1641226830962,2.00479,3751.2,3750.4,0.128157]
[1641226831162,2.132947,3751.2,3750.4,0.128157]
[1641226831568,2.132947,3751.2,3750.3,2.00479]
[1641226832162,3.46545063,3751.2,3750.3,2.00479]
[1641226832363,2.132947,3751.2,3750.3,2.00479]
[1641226832763,0.128157,3751.2,3750.3,2.00479]
[1641226832964,0.128157,3751.2,3750.4,0.128157]
[1641226833562,0.128157,3751.2,3750.3,2.00479]
[1641226834766,12.79,3751.1,3750.3,2.00479]
[1641226834966,12.79,3751.1,3749.9,2.00479]
[1641226835167,12.79,3751.1,3749.3,0.98295875]
[1641226835666,1.5,3750.4,3748.9,1.4407508]
[1641226835867,11.29,3750.3,3748.9,0.8897508]
[1641226836068,11.29,3750.3,3748.4,0.8897508]
[1641226836467,1.5,3750.1,3748.4,0.8897508]
[1641226836689,11.29,3749.3,3748.5,2.00479]
[1641226836868,0.128157,3749.2,3748.5,2.132947]
[1641226837268,0.128157,3749.2,3748.5,2.00479]
[1641226839175,0.128157,3749.2,3748.5,2.132947]
[1641226839371,0.128157,3749.2,3748.5,2.00479]
[1641226839572,0.128157,3749.2,3748.3,1.5]
[1641226840373,0.128157,3749.2,3748.2,1.5]
[1641226840575,0.773257,3749.2,3748.2,1.5]
[1641226840775,2.00479,3748.9,3748.2,1.5]
[1641226841173,2.00479,3748.9,3748.3,0.128157]
[1641226841372,13.29479,3748.9,3748.3,0.128157]
[1641226841574,13.29479,3748.9,3748.1,2.00479]
[1641226842474,1.5,3748.2,3747.0,0.53124267]
[1641226842676,5.50958,3747.1,3745.8,0.78682615]
[1641226842874,1.5,3746.7,3744.0,1.5]
[1641226843080,1.5,3746.5,3743.6,1.5]
[1641226843275,1.5,3746.3,3743.6,1.5]
[1641226843474,0.5426,3746.3,3743.6,1.5]
[1641226843676,0.5426,3746.3,3744.7,1.5]
[1641226843976,0.5426,3746.3,3743.6,5.06643586]
[1641226843977,0.5426,3746.3,3746.1,1.4818681]
[1641226844173,0.229991,3746.2,3745.0,1.5]
[1641226844378,0.5426,3746.3,3744.5,1.5]
[1641226844674,2.00479,3745.3,3744.5,2.00479]
[1641226845075,0.5426,3746.3,3745.2,1.5]
[1641226845274,0.5426,3746.3,3744.6,1.25696764]
[1641226845474,0.5426,3746.3,3745.2,1.5]
[1641226845677,0.5426,3746.3,3744.7,1.5]
[1641226845874,0.5426,3746.3,3744.6,1.25696764]
[1641226846076,0.551,3746.2,3744.6,1.25696764]
[1641226846478,0.5426,3746.3,3745.6,1.5]
[1641226846678,2.00479,3747.3,3746.2,2.00479]
[1641226846881,2.00479,3747.3,3746.3,1.5]
[1641226847077,2.00479,3747.3,3746.7,1.5]
[1641226847279,2.00479,3747.3,3746.2,2.00479]
[1641226847478,2.00479,3747.3,3746.9,1.5]
[1641226847680,2.00479,3747.3,3746.2,2.00479]
[1641226848278,2.69779,3747.3,3745.1,0.551]
[1641226848482,1.33388645,3747.2,3746.3,1.5]
[1641226848680,2.00479,3747.7,3747.0,2.00479]
[1641226849279,2.00479,3747.7,3747.0,3.50479]
[1641226849482,0.128157,3747.6,3747.1,1.04676338]
[1641226849880,2.00479,3747.7,3747.1,1.04676338]
[1641226850281,1.33375124,3747.5,3747.0,2.00479]
[1641226850480,11.29,3747.6,3747.0,1.07914407]
[1641226850680,11.29,3747.6,3746.7,2.00479]
[1641226850881,2.76579,3747.7,3746.7,2.00479]
[1641226851682,14.05579,3747.7,3746.7,2.00479]
[1641226852084,14.05579,3747.7,3746.2,2.00479]
[1641226852283,1.5,3747.1,3740.3,1.15495709]
[1641226852483,2.76579,3747.7,3745.1,1.5]
[1641226852684,2.00479,3746.2,3745.3,2.00479]
[1641226852887,2.00479,3746.2,3745.4,1.628157]
[1641226853084,26.694217,3749.1,3746.1,1.5]
[1641226853283,1.5,3748.7,3746.3,0.80077613]
[1641226853483,2.83343112,3748.4,3746.3,2.13420725]
[1641226853684,11.29,3748.4,3746.4,0.551]
[1641226854284,11.29,3748.4,3745.4,0.80097591]
[1641226854285,11.29,3748.4,3746.8,1.5]
[1641226854485,30.4941,3748.5,3747.0,1.5]
[1641226854788,2.00479,3748.7,3747.9,2.00479]
[1641226854986,0.128157,3748.6,3747.9,2.00479]
[1641226855186,0.899457,3748.6,3746.9,0.80064736]
[1641226855387,0.899457,3748.6,3746.8,1.5]
[1641226855587,0.551,3748.5,3746.8,1.5]
[1641226855790,0.128157,3748.6,3747.3,1.33308271]
[1641226855988,0.128157,3748.6,3747.3,1.96438271]
[1641226856387,0.128157,3748.6,3747.4,0.92355083]
[1641226856788,0.128157,3748.6,3747.9,2.00479]
[1641226856987,0.128157,3748.6,3747.9,2.132947]
[1641226857188,0.128157,3748.6,3747.9,2.00479]
[1641226857787,11.418157,3748.6,3747.9,2.00479]
[1641226858191,0.128157,3748.6,3747.5,2.00479]
[1641226858791,2.00479,3748.1,3747.5,2.00479]
[1641226858989,2.00479,3748.1,3747.6,0.128157]
[1641226859388,0.128157,3748.6,3747.6,0.128157]
[1641226860589,0.128157,3748.6,3747.5,2.00479]
[1641226860791,1.33350758,3748.2,3747.9,2.00479]
[1641226860989,13.50146458,3748.6,3747.5,2.00479]
[1641226860990,0.229991,3748.1,3747.5,2.00479]
[1641226861796,1.5,3747.9,3747.5,2.00479]
[1641226861997,0.128157,3747.8,3746.1,0.96099491]
[1641226862197,0.859757,3747.8,3746.1,0.96099491]
[1641226862801,0.859757,3747.8,3746.8,2.00479]
[1641226863403,2.00479,3748.0,3746.8,2.00479]
[1641226863604,2.00479,3748.7,3747.0,1.5]
[1641226863804,2.00479,3748.7,3747.0,0.95569168]
[1641226864002,2.00479,3748.7,3747.8,0.96189562]
[1641226864205,0.128157,3748.6,3747.9,0.128157]
[1641226864803,0.128157,3748.6,3747.9,2.132947]
[1641226865007,0.128157,3748.6,3747.9,2.00479]
[1641226866207,0.128157,3748.6,3748.0,0.128157]
[1641226866610,2.00479,3748.7,3748.0,0.128157]
[1641226868108,2.132947,3748.7,3748.0,0.128157]
[1641226868508,2.00479,3748.7,3748.0,0.128157]
[1641226869009,2.00479,3748.7,3747.9,2.00479]
[1641226869409,2.00479,3748.7,3748.0,0.128157]
[1641226870711,2.132947,3748.7,3748.0,0.128157]
[1641226871421,2.132947,3748.7,3747.9,2.00479]
[1641226872011,2.132947,3748.7,3748.0,0.128157]
[1641226872414,2.132947,3748.7,3747.9,2.00479]
[1641226872614,2.132947,3748.7,3748.0,5.33614851]
[1641226873015,2.132947,3748.7,3747.9,2.00479]
[1641226875018,2.132947,3748.7,3748.0,0.128157]
[1641226875218,1.33303295,3749.9,3748.4,2.64606114]
[1641226875421,1.33303295,3749.9,3748.4,3.46516114]
[1641226875619,1.13396661,3750.2,3749.2,2.48100318]
[1641226875818,1.13396661,3750.2,3749.2,2.99450318]
[1641226876019,31.6186,3751.0,3749.2,2.99450318]
[1641226876020,1.13396661,3750.4,3749.2,2.99450318]
[1641226877020,1.13396661,3750.4,3750.3,4.00958]
[1641226877221,1.49211461,3750.4,3750.3,2.00479]
[1641226877821,1.26212361,3750.4,3750.3,2.00479]
[1641226878024,1.49211461,3750.4,3750.3,2.00479]
[1641226878222,0.358148,3750.4,3750.3,2.00479]
[1641226878421,0.128157,3750.4,3750.3,0.19847644]
[1641226879022,2.00479,3750.8,3750.3,0.8217]
[1641226879221,1.13396661,3751.3,3750.3,0.8217]
[1641226879622,1.13396661,3751.8,3750.6,1.52327276]
[1641226879822,1.13396661,3751.8,3750.6,2.16677276]
[1641226880228,1.13396661,3751.8,3750.9,1.34647346]
[1641226880423,0.128157,3751.7,3751.0,0.128157]
[1641226880825,34.4452,3752.3,3751.0,0.128157]
[1641226881024,1.13396661,3752.4,3751.6,4.00958]
[1641226881223,0.26596661,3752.4,3751.6,4.70448]
[1641226881521,1.39345216,3752.7,3751.7,2.48934339]
[1641226881726,1.39345216,3752.7,3751.8,1.33147459]
[1641226881923,5.216e-05,3752.7,3751.7,2.48934339]
[1641226882122,1.6563383,3752.9,3752.4,1.17508576]
[1641226882322,3.83e-05,3752.9,3752.5,0.128157]
[1641226882525,3.48022069,3752.6,3752.5,0.128157]
[1641226882924,3.0603462,3752.8,3752.5,4.137737]
[1641226882925,0.75226689,3752.8,3752.5,4.137737]
[1641226883125,3.89221073,3752.9,3752.5,4.137737]
[1641226883322,4.24882651,3753.4,3752.5,4.137737]
[1641226883524,4.24882651,3753.4,3752.6,0.69242022]
[1641226883925,4.24882651,3753.4,3753.1,1.23472712]
[1641226884124,0.128157,3753.3,3753.1,1.23472712]
[1641226884324,4.24882651,3753.4,3753.1,1.23472712]
[1641226884925,2.83122999,3754.6,3753.3,2.00479]
[1641226885126,1.5,3753.4,3753.3,2.00479]
[1641226885324,1.729991,3753.4,3752.5,2.00479]
[1641226885529,1.729991,3753.4,3752.9,1.23478579]
[1641226885530,3.06166063,3753.4,3752.9,1.23478579]
[1641226885727,0.5,3753.4,3752.9,1.23478579]
[1641226886127,0.628157,3753.4,3752.9,1.23478579]
[1641226886326,0.628157,3753.4,3752.5,2.00479]
[1641226887026,0.128157,3753.4,3753.3,2.00479]
[1641226887227,0.358148,3753.4,3753.3,2.00479]
[1641226887426,0.358148,3753.4,3752.5,2.00479]
[1641226887626,0.358148,3753.4,3752.6,0.128157]
[1641226888229,0.128157,3753.4,3752.7,0.80561548]
[1641226888928,2.00479,3753.7,3752.7,0.80561548]
[1641226889329,0.5,3753.6,3752.7,0.80561548]
[1641226889627,0.128157,3753.5,3753.0,0.79934998]
[1641226890029,0.628157,3753.5,3752.6,0.128157]
[1641226890230,2.00479,3753.7,3753.0,0.79934317]
[1641226891531,2.00479,3753.7,3753.4,0.79927385]
[1641226891731,0.229991,3753.6,3753.4,0.79927385]
[1641226892033,0.5,3753.5,3752.7,0.79942005]
[1641226892230,0.5,3752.9,3752.8,0.128157]
[1641226893234,0.5,3753.6,3752.8,0.128157]
[1641226893534,0.5,3753.8,3752.8,0.128157]
[1641226893931,2.00479,3754.1,3752.8,0.128157]
[1641226894232,0.5,3754.0,3753.4,0.79926856]
[1641226895031,0.5,3754.0,3753.9,2.00479]
[1641226895231,0.729991,3754.0,3753.9,2.00479]
[1641226896034,0.5,3754.0,3753.9,2.00479]
[1641226896434,0.729991,3754.0,3753.9,0.20027491]
[1641226896635,0.5,3754.0,3753.9,0.20027491]
[1641226897034,0.5,3754.0,3753.5,2.00479]
[1641226897237,0.5,3753.6,3753.4,0.79926856]
[1641226897436,0.229991,3753.5,3751.2,32.8042]
[1641226897639,0.5,3752.8,3751.0,1.1516753]
[1641226897938,0.6759,3752.8,3751.7,0.551]
[1641226898138,0.6759,3752.8,3751.9,1.33145332]
[1641226898439,0.6759,3752.8,3751.9,0.79957964]
[1641226898939,0.5,3752.0,3751.0,0.79978267]
[1641226899140,0.5,3751.1,3751.0,0.79978267]
[1641226899339,0.5,3751.1,3750.6,2.00479]
[1641226899340,1.373557,3751.1,3750.6,2.00479]
[1641226899739,0.5,3750.9,3750.6,2.00479]
[1641226900141,0.229991,3750.8,3750.6,2.00479]
[1641226900440,0.5,3750.7,3750.6,2.00479]
[1641226900640,0.5,3750.7,3750.3,0.79992237]
[1641226900841,0.873557,3751.1,3750.3,0.79992237]
[1641226901040,2.00479,3750.8,3750.3,0.79992237]
[1641226901245,0.5,3750.4,3750.3,0.79992237]
[1641226901442,0.729991,3750.4,3750.3,0.79992237]
[1641226903648,0.729991,3750.4,3750.0,2.00479]
[1641226903854,0.5,3750.1,3748.8,1.40246234]
[1641226904049,0.5,3749.2,3748.8,1.40246234]
[1641226905149,2.00479,3748.9,3748.8,1.40246234]
[1641226905748,2.234781,3748.9,3748.8,1.40246234]
[1641226905949,2.00479,3748.9,3748.8,1.40246234]
[1641226906649,0.79633544,3748.9,3748.8,1.40246234]
[1641226908348,2.00479,3749.3,3748.8,1.40246234]
[1641226908550,32.0013,3750.7,3749.2,1.0]
[1641226908749,0.5,3750.7,3749.2,0.7725]
[1641226908953,0.5,3749.9,3749.7,0.96006749]
[1641226909150,0.5,3750.7,3749.8,4.00958]
[1641226909350,0.128157,3750.6,3749.8,4.00958]
[1641226910554,0.128157,3750.6,3749.9,1.99525452]
[1641226910954,0.128157,3750.6,3749.8,4.00958]
[1641226911155,0.5,3750.5,3750.2,2.00479]
[1641226911355,0.229991,3750.4,3750.2,2.00479]
[1641226912356,0.5,3750.3,3750.2,2.00479]
[1641226913555,0.729991,3750.3,3750.2,2.00479]
[1641226913755,0.5,3750.3,3750.2,2.00479]
[1641226914358,2.0,3750.3,3749.7,0.128157]
[1641226914558,0.5,3750.0,3749.5,0.80008877]
[1641226915158,4.00958,3749.6,3749.5,0.80008877]
[1641226915359,4.239571,3749.6,3749.5,0.80008877]
[1641226915958,4.739571,3749.6,3748.9,0.80022573]
[1641226916160,4.239571,3749.6,3748.9,0.80022573]
[1641226916359,4.00958,3749.6,3748.9,0.80022573]
[1641226918262,4.00958,3749.6,3749.4,0.80011644]
[1641226918462,4.00958,3749.6,3749.4,1.61161644]
[1641226920168,0.5,3749.5,3749.4,1.61161644]
[1641226920565,3.20952535,3749.6,3749.4,1.61161644]
[1641226920963,0.229991,3749.5,3749.4,1.61161644]
[1641226921463,3.20952535,3749.6,3749.4,1.61161644]
[1641226921967,3.20952535,3749.6,3749.5,1.0]
[1641226922170,0.551,3751.3,3749.5,1.0]
[1641226922367,0.5,3750.9,3749.7,1.0]
[1641226922567,32.82052965,3751.5,3749.7,1.0]
[1641226922768,0.5,3751.1,3750.0,0.95997549]
[1641226923067,0.5,3751.1,3750.0,1.95997549]
[1641226923266,2.00479,3750.9,3750.1,2.00479]
[1641226923666,0.128157,3750.8,3750.1,2.00479]
[1641226923867,2.00479,3750.9,3750.1,2.00479]
[1641226924467,0.5,3751.1,3750.1,2.00479]
[1641226925269,1.5,3751.3,3751.0,2.00479]
[1641226925469,0.5,3751.1,3750.5,1.18285311]
[1641226925669,0.5,3750.8,3750.5,1.18285311]
[1641226925871,29.9757,3751.9,3750.5,2.12683461]
[1641226926072,1.5,3751.8,3750.5,2.12683461]
[1641226926269,0.5,3750.6,3750.5,2.12683461]
[1641226926468,0.5,3750.6,3750.5,0.9439815]
[1641226927869,2.00479,3751.1,3751.0,0.29977638]
[1641226928069,2.234781,3751.1,3750.3,0.95990698]
[1641226928269,3.734781,3751.1,3750.3,0.95990698]
[1641226928468,2.234781,3751.1,3750.3,0.95990698]
[1641226932372,3.734781,3751.1,3750.1,2.00479]
[1641226932574,1.5,3750.3,3748.7,1.33259064]
[1641226932774,1.5,3749.8,3748.4,0.96038641]
[1641226932975,1.5,3749.4,3748.4,0.96038641]
[1641226933178,1.5,3748.8,3748.4,0.96038641]
[1641226933378,1.628157,3748.7,3748.2,0.80037098]
[1641226933777,0.128157,3748.7,3748.2,0.80037098]
[1641226935179,2.00479,3748.4,3748.2,0.80037098]
[1641226935378,0.229991,3748.3,3748.2,0.80037098]
[1641226938486,0.229991,3748.3,3747.7,2.00479]
[1641226939185,1.729991,3748.3,3747.7,2.00479]
[1641226939484,1.729991,3748.3,3747.6,0.96060941]
[1641226940985,0.229991,3748.3,3747.6,0.96060941]
[1641226941186,2.00479,3747.7,3747.6,0.96060941]
[1641226941390,2.362938,3747.7,3747.6,0.96060941]
[1641226941886,2.132947,3747.7,3747.6,0.96060941]
[1641226942389,2.362938,3747.7,3747.6,0.96060941]
[1641226943593,2.00479,3747.7,3747.6,0.96060941]
[1641226944389,2.234781,3747.7,3747.6,0.96060941]
[1641226950294,2.79948723,3747.7,3747.6,0.96060941]
[1641226950494,2.56949623,3747.7,3747.6,0.96060941]
[1641226950696,2.56949623,3747.7,3747.6,1.70560941]
[1641226951302,2.79948723,3747.7,3747.6,1.70560941]
[1641226952402,2.56949623,3747.7,3747.6,1.70560941]
[1641226952604,2.69765323,3747.7,3747.6,0.96060941]
[1641226952902,2.92764423,3747.7,3747.6,0.96060941]
[1641226953502,2.92764423,3747.7,3747.2,1.48632898]
[1641226953703,2.92764423,3747.7,3747.3,2.46027349]
[1641226954102,2.362938,3747.7,3747.3,2.46027349]
[1641226956006,14.12386154,3747.4,3746.4,2.97265796]